{"text_format":"1","workbook":"xlsx","n_sheets":19,"sheets":["Titre","Pyramide sécurité","adhérence aux stds","plan d'action Sécurité","Dernier Soin - accident","Pyramide Qualité","Corps étrangers","plan d'action Qualité","Perfs lignes A","Perfs lignes B","Perfs lignes C","Perfs lignes D","Perfs lignes E","Plan d'action court terme","suivi des pannes","planning d'activités","visites  évènements","planning présence back-up","Reporting Data WOR"],"not_rendered":{"charts":0,"images":39,"macros":1,"external_links":0,"defined_names":0,"comments":0,"pivot_tables":0},"unopened":[],"bounds":{"document_bytes":16777216,"sheet_cells":100000,"rows_first":2000,"rows_last":500,"rows_between":2000,"halvings":0,"cell_chars":16384,"cell_head_chars":4096},"cells_cut":0,"cells_raw":0,"read":"whole","date_system":"1900"}

{"sheet":"Titre","index":0,"n_rows":63,"n_cols":11,"rows_kept":63,"cut":false,"hidden":false,"merged":[[24,6,25,9],[24,10,25,12],[28,8,28,9],[28,11,28,12]]}
[]
[]
[]
[]
[]
[]
[]
[]
[]
[]
[]
[]
[]
[]
[]
[]
[]
[]
[]
[]
[]
[]
[]
[]
[null,null,null,null,null,null,"Nous sommes le :",null,null,null,{"$f":"TODAY()","v":"2021-10-06"}]
[]
[]
[]
[null,null,null,null,null,null,null,null,"DOR - S ",null,{"$f":"_xlfn.ISOWEEKNUM(K25)","v":40}]
[]
[]
[]
[]
[]
[]
[]
[]
[]
[]
[]
[]
[]
[]
[]
[]
[]
[]
[]
[]
[]
[]
[]
[]
[]
[]
[]
[]
[]
[]
[]
[]
[]
[null,null,null,null,null,null,null,null,null,{"$f":"CONCATENATE(I29,K29)","v":"DOR - S 40"}]

{"sheet":"Pyramide sécurité","index":1,"n_rows":29,"n_cols":38,"rows_kept":29,"cut":false,"hidden":false,"merged":[[0,12,2,27],[3,19,3,21],[3,22,3,25],[7,4,9,4],[10,8,11,8],[5,19,5,21],[5,22,5,25],[8,23,8,25],[18,8,19,8],[28,8,29,8],[3,12,3,13],[6,11,7,13],[10,11,11,19],[14,12,15,15],[18,12,19,14],[22,12,23,18],[26,12,27,16],[12,23,12,25],[16,23,16,25],[20,23,20,25],[24,23,24,25],[28,23,28,25]]}
[null,null,null,null,null,null,null,null,null,null,null,null,"Remontées sécurité en lien avec les règles d’or"]
[]
[null,null,null,null,null,null,null,null,null,null,null,null,null,null,null,null,null,null,null,null,null,null,null,null,null,null,null,null,null,null,null,null,null,null,null,null,null,{"$f":"TODAY()","v":"2021-10-06"}]
[null,null,null,null,null,null,null,null,null,null,null,null,null,null,null,null,null,null,null,"Mois :",null,null,"Septembre",null,null,null,null,null,null,"Janvier","x",null,null,null,null,null,null,{"$f":"_xlfn.ISOWEEKNUM(AL3)","v":40}]
[null,null,null,null,null,null,null,null,null,null,null,null,null,null,null,null,null,null,null,null,null,null,null,null,null,null,null,null,null,"Février"]
[null,null,null,null,null,null,null,null,null,null,null,null,null,null,null,null,null,null,null,"Focus :",null,null,null,null,null,null,null,null,null,"Mars"]
[null,null,null,null,null,null,null,null,null,null,null,"EPI",null,null,null,null,null,null,null,null,null,null,null,null,null,null,null,null,null,"Avril"]
[null,null,null,null,null,null,null,null,null,null,null,null,null,null,null,null,null,null,null,null,null,null,null,null,null,null,null,null,null,"Mai"]
[null,null,null,null,null,null,null,null,null,null,null,null,null,null,null,null,"x",null,null,null,null,null,null,"Total semaine",null,null,{"$f":"COUNTA(M9:T9)","v":1},null,null,"Juin"]
[null,null,null,null,null,null,null,null,null,null,null,null,null,null,null,null,null,null,null,null,null,null,null,null,null,null,null,null,null,"Juillet"]
[null,null,null,null,null,null,null,null,0,null,null,"Carte Sécurité (SHE MAP)",null,null,null,null,null,null,null,null,null,null,null,null,null,null,null,null,null,"Août"]
[null,null,null,null,null,null,null,null,null,null,null,null,null,null,null,null,null,null,null,null,null,null,null,null,null,null,null,null,null,"Septembre"]
[null,null,null,null,null,null,null,null,null,null,null,null,null,null,null,null,null,null,null,null,null,null,null,"Total semaine",null,null,{"$f":"COUNTA(M13:T13)","v":0},null,null,"Octobre"]
[null,null,null,null,null,null,null,null,null,null,null,null,null,null,null,null,null,null,null,null,null,null,null,null,null,null,null,null,null,"Novembre"]
[null,null,null,null,null,null,null,null,null,null,null,null,"LOTO",null,null,null,null,null,null,null,null,null,null,null,null,null,null,null,null,"Décembre"]
[]
[null,null,null,null,null,null,null,null,null,null,null,null,null,null,null,null,null,null,null,null,null,null,null,"Total semaine",null,null,{"$f":"COUNTA(M17:T17)","v":0}]
[]
[null,null,null,null,null,null,null,null,2,null,null,null,"5S"]
[]
[null,null,null,null,null,null,null,null,null,null,null,null,null,null,null,null,null,null,null,null,null,null,null,"Total semaine",null,null,{"$f":"COUNTA(M21:T21)","v":0}]
[]
[null,null,null,null,null,null,null,null,null,null,null,null,"Situations à risque"]
[]
[null,null,null,null,null,null,null,null,null,null,null,null,null,null,null,null,null,null,null,null,null,null,null,"Total semaine",null,null,{"$f":"COUNTA(M25:T25)","v":0}]
[]
[null,null,null,null,null,null,null,null,null,null,null,null,"3 mètres"]
[]
[null,null,null,null,null,null,null,null,9,null,null,null,null,null,null,null,null,null,null,null,null,null,null,"Total semaine",null,null,{"$f":"COUNTA(M29:T29)","v":0}]

{"sheet":"adhérence aux stds","index":2,"n_rows":20,"n_cols":15,"rows_kept":20,"cut":false,"hidden":false,"merged":[[11,8,11,9],[17,6,17,10],[13,6,13,10],[7,2,7,5],[7,6,7,7],[7,8,7,9],[8,2,8,5],[9,2,9,5],[15,2,16,7],[4,2,5,6],[18,2,18,5],[18,6,18,7],[18,8,18,9],[19,2,19,5],[19,6,19,7],[19,8,19,9],[10,2,10,5],[11,2,11,5],[8,6,8,7],[8,8,8,9],[9,6,9,7],[9,8,9,9],[10,6,10,7],[10,8,10,9],[11,6,11,7],[20,2,20,5],[20,6,20,7],[20,8,20,9],[21,2,21,5],[21,6,21,7],[21,8,21,9]]}
[]
[]
[]
[]
[null,null,"Quelle sont les activités à risque des dernières 24h ?"]
[]
[]
[null,null,"ACTIVITES",null,null,null,"ZONE",null,"PREDICTION RISQUES REALISEE",null,null,null,null,null,"oui"]
[null,null,null,null,null,null,null,null,null,null,null,null,null,null,"non"]
[]
[]
[]
[]
[]
[]
[null,null,"Quelle sont les activités à risque à venir dans les prochaines heures ?"]
[]
[]
[null,null,"ACTIVITES",null,null,null,"ZONE",null,"Coaching à déclencher ?",null,null,null,null,"rajouter colonne qui fait le coaching"]
[null,null,null,null,null,null,null,null,null,null,null,null,null,"supprimer la couleur"]

{"sheet":"plan d'action Sécurité","index":3,"n_rows":8,"n_cols":14,"rows_kept":8,"cut":false,"hidden":false,"merged":[[9,6,9,9],[10,6,10,9],[8,4,8,5],[9,4,9,5],[10,4,10,5],[8,6,8,9],[7,4,7,5],[3,4,3,5],[3,6,3,9],[4,4,4,5],[5,4,5,5],[6,4,6,5],[4,6,4,9],[5,6,5,9],[6,6,6,9],[7,6,7,9]]}
[]
[]
[]
[null,"Date","Pilote","Ligne","Equipement",null,"Problématique"]
[null,"S40","SBL","Commun","Machine à laver",null,"Installer une chainette + crochet",null,null,null,null,null,null,"ajouter colonne délai"]
[null,"S40","SBL","LA","Ensacheuse2",null,"Planifier remise en état châssis / support bobine"]
[null,"S40","CTL","LC","ensacheuses",null,"bloc machoires couteaux"]
[null,"S40","GDR","LC","palan",null,"intervention pour réparation"]

{"sheet":"Dernier Soin - accident","index":4,"n_rows":5,"n_cols":7,"rows_kept":5,"cut":false,"hidden":false,"merged":[[3,1,3,4],[3,6,3,8],[4,1,22,4],[4,6,22,8]]}
[]
[]
[]
[null,"Description",null,null,null,null,"Photo / template sécurité"]
[null,"Lors du nettoyage entre le chocapic teddy et le standard, la conductrice a voulu regarder si les couloirs vibrants étaient vides. Etant trop petite, elle a voulu monter sur la marche de la peseuse en se tenant à un montant dans la peseuse pour l'aider à monter (cf photo). Elle a alors ressenti une douleur sur le flanc droit."]

{"sheet":"Pyramide Qualité","index":5,"n_rows":29,"n_cols":36,"rows_kept":29,"cut":false,"hidden":false,"merged":[[24,24,24,26],[28,24,28,26],[8,24,8,26],[12,24,12,26],[16,24,16,26],[20,24,20,26],[28,8,29,8],[6,12,6,19],[10,12,11,19],[18,12,19,19],[26,12,27,19],[10,8,11,8],[14,12,15,15],[18,8,19,8],[22,12,23,18],[0,12,2,27],[3,12,3,13],[3,19,3,21],[3,22,3,25],[5,21,5,22],[5,23,5,25]]}
[null,null,null,null,null,null,null,null,null,null,null,null,"Remontées Qualité"]
[]
[]
[null,null,null,null,null,null,null,null,null,null,null,null,null,null,null,null,null,null,null,"Mois :",null,null,"Septembre",null,null,null,null,null,null,"Janvier","x",null,null,null,null,{"$f":"TODAY()","v":"2021-10-06"}]
[null,null,null,null,null,null,null,null,null,null,null,null,null,null,null,null,null,null,null,null,null,null,null,null,null,null,null,null,null,"Février",null,null,null,null,null,{"$f":"_xlfn.ISOWEEKNUM(AJ4)","v":40}]
[null,null,null,null,null,null,null,null,null,null,null,null,null,null,null,null,null,null,null,null,null,"Thème :",null,"insectes",null,null,null,null,null,"Mars"]
[null,null,null,null,null,null,null,null,null,null,null,null,"EPI - Tenue de travail",null,null,null,null,null,null,null,null,null,null,null,null,null,null,null,null,"Avril"]
[null,null,null,null,null,null,null,null,null,null,null,null,null,null,null,null,null,null,null,null,null,null,null,null,null,null,null,null,null,"Mai"]
[null,null,null,null,null,null,null,null,null,null,null,null,null,null,null,null,null,null,null,null,null,null,null,null,"Total Semaine",null,null,{"$f":"COUNTA(M9:T9)","v":0},null,"Juin"]
[null,null,null,null,null,null,null,null,null,null,null,null,null,null,null,null,null,null,null,null,null,null,null,null,null,null,null,null,null,"Juillet"]
[null,null,null,null,null,null,null,null,0,null,null,null,"Effets personnels",null,null,null,null,null,null,null,null,null,null,null,null,null,null,null,null,"Août"]
[null,null,null,null,null,null,null,null,null,null,null,null,null,null,null,null,null,null,null,null,null,null,null,null,null,null,null,null,null,"Septembre"]
[null,null,null,null,null,null,null,null,null,null,null,null,null,null,null,null,null,null,null,null,null,null,null,null,"Total Semaine",null,null,{"$f":"COUNTA(M13:T13)","v":0},null,"Octobre"]
[null,null,null,null,null,null,null,null,null,null,null,null,null,null,null,null,null,null,null,null,null,null,null,null,null,null,null,null,null,"Novembre"]
[null,null,null,null,null,null,null,null,null,null,null,null,"5S",null,null,null,null,null,null,null,null,null,null,null,null,null,null,null,null,"Décembre"]
[]
[null,null,null,null,null,null,null,null,null,null,null,null,null,null,null,null,null,null,null,null,null,null,null,null,"Total Semaine",null,null,{"$f":"COUNTA(M17:T17)","v":0}]
[]
[null,null,null,null,null,null,null,null,5,null,null,null,"Consommation étiquettes"]
[]
[null,null,null,null,null,null,null,null,null,null,null,null,null,null,null,null,null,null,null,null,null,null,null,null,"Total Semaine",null,null,{"$f":"COUNTA(M21:T21)","v":0}]
[]
[null,null,null,null,null,null,null,null,null,null,null,null,"Situations à risque"]
[]
[null,null,null,null,null,null,null,null,null,null,null,null,null,null,null,null,null,null,null,null,null,null,null,null,"Total Semaine",null,null,{"$f":"COUNTA(M25:T25)","v":0}]
[]
[null,null,null,null,null,null,null,null,null,null,null,null,"Portes et fenêtres fermées"]
[]
[null,null,null,null,null,null,null,null,13,null,null,null,null,null,null,null,null,null,null,null,null,null,null,null,"Total Semaine",null,null,{"$f":"COUNTA(M29:T29)","v":0}]

{"sheet":"Corps étrangers","index":6,"n_rows":0,"n_cols":0,"rows_kept":0,"cut":false,"hidden":false,"merged":[]}

{"sheet":"plan d'action Qualité","index":7,"n_rows":9,"n_cols":11,"rows_kept":9,"cut":false,"hidden":false,"merged":[[9,3,9,4],[10,3,10,4],[4,6,4,9],[10,6,10,9],[9,6,9,9],[8,6,8,9],[7,6,7,9],[6,6,6,9],[6,3,6,4],[7,3,7,4],[8,3,8,4],[3,3,3,4],[4,3,4,4],[5,3,5,4],[5,6,5,9],[3,6,3,7]]}
[]
[]
[]
[null,"Date","Ligne","Problématique",null,"Qui","Délai",null,null,null,"Priorités définies ?"]
[null,"2021-08-06","B","Conformateur à risque, regarder si besoin de les raccourcir. Analyse à faire",null,"CBR","S40"]
[]
[]
[]
[null,"2021-10-04","condi","lot qui change en auto à minuit, demande de modification",null,"AOR","S40"]

{"sheet":"Perfs lignes A","index":8,"n_rows":28,"n_cols":39,"rows_kept":28,"cut":false,"hidden":false,"merged":[[7,29,12,30],[7,31,12,32],[7,33,12,34],[5,29,5,34],[1,1,2,27],[7,25,7,27],[8,25,8,27],[0,29,2,34],[4,29,4,34],[6,29,6,30],[6,31,6,32],[6,33,6,34],[28,23,28,27],[27,23,27,27],[13,25,13,27],[14,25,14,27],[20,25,20,27],[21,25,21,27],[31,23,31,27],[30,23,30,27],[29,23,29,27],[31,14,31,16],[27,17,27,19],[27,20,27,22],[28,17,28,19],[29,17,29,19],[30,17,30,19],[31,17,31,19],[28,20,28,22],[29,20,29,22],[30,20,30,22],[31,20,31,22],[27,14,27,16],[28,14,28,16],[29,14,29,16],[30,14,30,16],[22,3,23,4],[19,3,20,4],[19,11,19,12],[19,9,19,10],[19,7,19,8],[19,5,19,6],[22,11,22,12],[22,9,22,10],[22,7,22,8],[22,5,22,6],[21,3,21,12]]}
[null,null,null,null,null,null,null,null,null,null,null,null,null,null,null,null,null,null,null,null,null,null,null,null,null,null,null,null,null,"Incrémentation des datas pour la WOR\n (fait par l'animateur de la DOR)"]
[null,"Ligne A",null,null,null,null,null,null,null,null,null,null,null,null,null,null,null,null,null,null,null,null,null,null,null,null,null,null,null,null,null,null,null,null,null,null,null,null,{"$f":"TODAY()","v":"2021-10-06"}]
[null,null,null,null,null,null,null,null,null,null,null,null,null,null,null,null,null,null,null,null,null,null,null,null,null,null,null,null,null,null,null,null,null,null,null,null,null,null,{"$f":"_xlfn.ISOWEEKNUM(AM2)","v":40}]
[]
[null,null,null,null,null,null,null,null,null,null,null,null,null,null,null,null,null,null,null,null,null,null,null,null,null,null,null,null,null,"cliquer sur chaque icône le vendredi en fin de slide",null,null,null,null,null,null,null,"oui"]
[null,null,null,null,null,null,null,null,null,null,null,null,null,null,null,null,null,null,null,null,null,null,null,null,null,null,null,null,null,"Le total semaine se colore en vert quand vous cliquez",null,null,null,null,null,null,null,"non"]
[null,null,null,null,null,null,null,null,null,null,null,null,null,null,null,null,null,null,null,null,null,null,null,null,null,null,null,null,null,"Point focus",null,"CIL",null,"Centerlining",null,null,null,"#NA"]
[null,null,null,null,null,null,null,null,null,null,null,null,null,null,null,null,null,"L","Ma","Me","J","V","S","D",null,"Total Semaine"]
[]
[null,null,null,null,null,null,null,null,null,null,null,null,null,null,null,null,null,"#NA","oui","non","non","non","non","non",null,{"$f":"COUNTIF(R10:X10,\"non\")","v":5}]
[]
[]
[]
[null,null,null,null,"L","Ma","Me","J","V","S","D",null,null,null,null,null,null,"L","Ma","Me","J","V","S","D",null,"Total Semaine"]
[]
[null,null,null,null,null,null,null,null,null,null,null,null,null,null,null,null,null,"non","oui","non",null,null,null,null,null,{"$f":"COUNTIF(R16:X16,\"non\")","v":2}]
[]
[]
[]
[null,null,null,"P1",null,1,null,null,null,null,null,null,null,null,null,null,null,null,null,null,null,null,null,null,null,null,null,null,null,null,null,"lien feuille des pannes"]
[null,null,null,null,null,null,null,null,null,null,null,null,null,null,null,null,null,"L","Ma","Me","J","V","S","D",null,"Total Semaine"]
[]
[null,null,null,"P2",null,null,null,null,null,null,null,null,null,null,null,null,null,"non",null,null,null,null,null,null,null,{"$f":"COUNTIF(R23:X23,\"non\")","v":1}]
[]
[]
[]
[]
[null,null,null,null,null,null,null,null,null,null,null,null,null,null,"N° de point",null,null,"Valeur",null,null,"Standard",null,null,"Remis au std ?"]

{"sheet":"Perfs lignes B","index":9,"n_rows":28,"n_cols":39,"rows_kept":28,"cut":false,"hidden":false,"merged":[[31,14,31,16],[31,17,31,19],[31,20,31,22],[31,23,31,27],[29,14,29,16],[29,17,29,19],[29,20,29,22],[29,23,29,27],[30,14,30,16],[30,17,30,19],[30,20,30,22],[30,23,30,27],[27,14,27,16],[27,17,27,19],[27,20,27,22],[27,23,27,27],[28,14,28,16],[28,17,28,19],[28,20,28,22],[28,23,28,27],[21,3,21,12],[21,25,21,27],[22,3,23,4],[22,5,22,6],[22,7,22,8],[22,9,22,10],[22,11,22,12],[14,25,14,27],[19,3,20,4],[19,5,19,6],[19,7,19,8],[19,9,19,10],[19,11,19,12],[20,25,20,27],[7,29,12,30],[7,31,12,32],[7,33,12,34],[13,25,13,27],[0,29,2,34],[1,1,2,27],[4,29,4,34],[5,29,5,34],[6,29,6,30],[6,31,6,32],[6,33,6,34]]}
[null,null,null,null,null,null,null,null,null,null,null,null,null,null,null,null,null,null,null,null,null,null,null,null,null,null,null,null,null,"Incrémentation des datas pour la WOR\n (fait par l'animateur de la DOR)"]
[null,"Ligne B",null,null,null,null,null,null,null,null,null,null,null,null,null,null,null,null,null,null,null,null,null,null,null,null,null,null,null,null,null,null,null,null,null,null,null,null,{"$f":"TODAY()","v":"2021-10-06"}]
[null,null,null,null,null,null,null,null,null,null,null,null,null,null,null,null,null,null,null,null,null,null,null,null,null,null,null,null,null,null,null,null,null,null,null,null,null,null,{"$f":"_xlfn.ISOWEEKNUM(AM2)","v":40}]
[]
[null,null,null,null,null,null,null,null,null,null,null,null,null,null,null,null,null,null,null,null,null,null,null,null,null,null,null,null,null,"cliquer sur chaque icône le vendredi en fin de slide",null,null,null,null,null,null,null,"oui"]
[null,null,null,null,null,null,null,null,null,null,null,null,null,null,null,null,null,null,null,null,null,null,null,null,null,null,null,null,null,"Le total semaine se colore en vert quand vous cliquez",null,null,null,null,null,null,null,"non"]
[null,null,null,null,null,null,null,null,null,null,null,null,null,null,null,null,null,null,null,null,null,null,null,null,null,null,null,null,null,"Point focus",null,"CIL",null,"Centerlining",null,null,null,"#NA"]
[]
[]
[]
[]
[]
[]
[null,null,null,null,"L","Ma","Me","J","V","S","D",null,null,null,null,null,null,"L","Ma","Me","J","V","S","D",null,"Total Semaine"]
[]
[null,null,null,null,null,null,null,null,null,null,null,null,null,null,null,null,null,"non","non","non","#NA",null,null,null,null,{"$f":"COUNTIF(R16:X16,\"non\")","v":3}]
[]
[]
[]
[null,null,null,"P1",null,11]
[null,null,null,null,null,null,null,null,null,null,null,null,null,null,null,null,null,"L","Ma","Me","J","V","S","D",null,"Total Semaine"]
[]
[null,null,null,"P2",null,null,null,null,null,null,null,null,null,null,null,null,null,"non",null,null,null,null,null,null,null,{"$f":"COUNTIF(R23:X23,\"non\")","v":1}]
[]
[]
[]
[]
[null,null,null,null,null,null,null,null,null,null,null,null,null,null,"N° de point",null,null,"Valeur",null,null,"Standard",null,null,"Remis au std ?"]

{"sheet":"Perfs lignes C","index":10,"n_rows":28,"n_cols":39,"rows_kept":28,"cut":false,"hidden":false,"merged":[[31,14,31,16],[31,17,31,19],[31,20,31,22],[31,23,31,27],[29,14,29,16],[29,17,29,19],[29,20,29,22],[29,23,29,27],[30,14,30,16],[30,17,30,19],[30,20,30,22],[30,23,30,27],[27,14,27,16],[27,17,27,19],[27,20,27,22],[27,23,27,27],[28,14,28,16],[28,17,28,19],[28,20,28,22],[28,23,28,27],[21,3,21,12],[21,25,21,27],[22,3,23,4],[22,5,22,6],[22,7,22,8],[22,9,22,10],[22,11,22,12],[14,25,14,27],[19,3,20,4],[19,5,19,6],[19,7,19,8],[19,9,19,10],[19,11,19,12],[20,25,20,27],[7,29,12,30],[7,31,12,32],[7,33,12,34],[13,25,13,27],[0,29,2,34],[1,1,2,27],[4,29,4,34],[5,29,5,34],[6,29,6,30],[6,31,6,32],[6,33,6,34]]}
[null,null,null,null,null,null,null,null,null,null,null,null,null,null,null,null,null,null,null,null,null,null,null,null,null,null,null,null,null,"Incrémentation des datas pour la WOR\n (fait par l'animateur de la DOR)"]
[null,"Ligne C",null,null,null,null,null,null,null,null,null,null,null,null,null,null,null,null,null,null,null,null,null,null,null,null,null,null,null,null,null,null,null,null,null,null,null,null,{"$f":"TODAY()","v":"2021-10-06"}]
[null,null,null,null,null,null,null,null,null,null,null,null,null,null,null,null,null,null,null,null,null,null,null,null,null,null,null,null,null,null,null,null,null,null,null,null,null,null,{"$f":"_xlfn.ISOWEEKNUM(AM2)","v":40}]
[]
[null,null,null,null,null,null,null,null,null,null,null,null,null,null,null,null,null,null,null,null,null,null,null,null,null,null,null,null,null,"cliquer sur chaque icône le vendredi en fin de slide",null,null,null,null,null,null,null,"oui"]
[null,null,null,null,null,null,null,null,null,null,null,null,null,null,null,null,null,null,null,null,null,null,null,null,null,null,null,null,null,"Le total semaine se colore en vert quand vous cliquez",null,null,null,null,null,null,null,"non"]
[null,null,null,null,null,null,null,null,null,null,null,null,null,null,null,null,null,null,null,null,null,null,null,null,null,null,null,null,null,"Point focus",null,"CIL",null,"Centerlining",null,null,null,"#NA"]
[]
[]
[]
[]
[]
[]
[null,null,null,null,"L","Ma","Me","J","V","S","D",null,null,null,null,null,null,"L","Ma","Me","J","V","S","D",null,"Total Semaine"]
[]
[null,null,null,null,null,null,null,null,null,null,null,null,null,null,null,null,null,"non","oui","non",null,null,null,null,null,{"$f":"COUNTIF(R16:X16,\"non\")","v":2}]
[]
[]
[]
[null,null,null,"P1",null,11]
[null,null,null,null,null,null,null,null,null,null,null,null,null,null,null,null,null,"L","Ma","Me","J","V","S","D",null,"Total Semaine"]
[]
[null,null,null,"P2",null,null,null,null,null,null,null,null,null,null,null,null,null,"non",null,null,null,null,null,null,null,{"$f":"COUNTIF(R23:X23,\"non\")","v":1}]
[]
[]
[]
[]
[null,null,null,null,null,null,null,null,null,null,null,null,null,null,"N° de point",null,null,"Valeur",null,null,"Standard",null,null,"Remis au std ?"]

{"sheet":"Perfs lignes D","index":11,"n_rows":28,"n_cols":39,"rows_kept":28,"cut":false,"hidden":false,"merged":[[31,14,31,16],[31,17,31,19],[31,20,31,22],[31,23,31,27],[29,14,29,16],[29,17,29,19],[29,20,29,22],[29,23,29,27],[30,14,30,16],[30,17,30,19],[30,20,30,22],[30,23,30,27],[27,14,27,16],[27,17,27,19],[27,20,27,22],[27,23,27,27],[28,14,28,16],[28,17,28,19],[28,20,28,22],[28,23,28,27],[21,3,21,12],[21,25,21,27],[22,3,23,4],[22,5,22,6],[22,7,22,8],[22,9,22,10],[22,11,22,12],[14,25,14,27],[19,3,20,4],[19,5,19,6],[19,7,19,8],[19,9,19,10],[19,11,19,12],[20,25,20,27],[7,29,12,30],[7,31,12,32],[7,33,12,34],[13,25,13,27],[0,29,2,34],[1,1,2,27],[4,29,4,34],[5,29,5,34],[6,29,6,30],[6,31,6,32],[6,33,6,34]]}
[null,null,null,null,null,null,null,null,null,null,null,null,null,null,null,null,null,null,null,null,null,null,null,null,null,null,null,null,null,"Incrémentation des datas pour la WOR\n (fait par l'animateur de la DOR)"]
[null,"Ligne D",null,null,null,null,null,null,null,null,null,null,null,null,null,null,null,null,null,null,null,null,null,null,null,null,null,null,null,null,null,null,null,null,null,null,null,null,{"$f":"TODAY()","v":"2021-10-06"}]
[null,null,null,null,null,null,null,null,null,null,null,null,null,null,null,null,null,null,null,null,null,null,null,null,null,null,null,null,null,null,null,null,null,null,null,null,null,null,{"$f":"_xlfn.ISOWEEKNUM(AM2)","v":40}]
[]
[null,null,null,null,null,null,null,null,null,null,null,null,null,null,null,null,null,null,null,null,null,null,null,null,null,null,null,null,null,"cliquer sur chaque icône le vendredi en fin de slide",null,null,null,null,null,null,null,"oui"]
[null,null,null,null,null,null,null,null,null,null,null,null,null,null,null,null,null,null,null,null,null,null,null,null,null,null,null,null,null,"Le total semaine se colore en vert quand vous cliquez",null,null,null,null,null,null,null,"non"]
[null,null,null,null,null,null,null,null,null,null,null,null,null,null,null,null,null,null,null,null,null,null,null,null,null,null,null,null,null,"Point focus",null,"CIL",null,"Centerlining",null,null,null,"#NA"]
[]
[]
[]
[]
[]
[]
[null,null,null,null,"L","Ma","Me","J","V","S","D",null,null,null,null,null,null,"L","Ma","Me","J","V","S","D",null,"Total Semaine"]
[]
[null,null,null,null,null,null,null,null,null,null,null,null,null,null,null,null,null,"non","oui","non",null,null,null,null,null,{"$f":"COUNTIF(R16:X16,\"non\")","v":2}]
[]
[]
[]
[null,null,null,"P1",null,11]
[null,null,null,null,null,null,null,null,null,null,null,null,null,null,null,null,null,"L","Ma","Me","J","V","S","D",null,"Total Semaine"]
[]
[null,null,null,"P2",null,null,null,null,null,null,null,null,null,null,null,null,null,"non",null,null,null,null,null,null,null,{"$f":"COUNTIF(R23:X23,\"non\")","v":1}]
[]
[]
[]
[]
[null,null,null,null,null,null,null,null,null,null,null,null,null,null,"N° de point",null,null,"Valeur",null,null,"Standard",null,null,"Remis au std ?"]

{"sheet":"Perfs lignes E","index":12,"n_rows":28,"n_cols":39,"rows_kept":28,"cut":false,"hidden":false,"merged":[[31,14,31,16],[31,17,31,19],[31,20,31,22],[31,23,31,27],[29,14,29,16],[29,17,29,19],[29,20,29,22],[29,23,29,27],[30,14,30,16],[30,17,30,19],[30,20,30,22],[30,23,30,27],[27,14,27,16],[27,17,27,19],[27,20,27,22],[27,23,27,27],[28,14,28,16],[28,17,28,19],[28,20,28,22],[28,23,28,27],[21,3,21,12],[21,25,21,27],[22,3,23,4],[22,5,22,6],[22,7,22,8],[22,9,22,10],[22,11,22,12],[14,25,14,27],[19,3,20,4],[19,5,19,6],[19,7,19,8],[19,9,19,10],[19,11,19,12],[20,25,20,27],[7,29,12,30],[7,31,12,32],[7,33,12,34],[13,25,13,27],[0,29,2,34],[1,1,2,27],[4,29,4,34],[5,29,5,34],[6,29,6,30],[6,31,6,32],[6,33,6,34]]}
[null,null,null,null,null,null,null,null,null,null,null,null,null,null,null,null,null,null,null,null,null,null,null,null,null,null,null,null,null,"Incrémentation des datas pour la WOR\n (fait par l'animateur de la DOR)"]
[null,"Ligne E",null,null,null,null,null,null,null,null,null,null,null,null,null,null,null,null,null,null,null,null,null,null,null,null,null,null,null,null,null,null,null,null,null,null,null,null,{"$f":"TODAY()","v":"2021-10-06"}]
[null,null,null,null,null,null,null,null,null,null,null,null,null,null,null,null,null,null,null,null,null,null,null,null,null,null,null,null,null,null,null,null,null,null,null,null,null,null,{"$f":"_xlfn.ISOWEEKNUM(AM2)","v":40}]
[]
[null,null,null,null,null,null,null,null,null,null,null,null,null,null,null,null,null,null,null,null,null,null,null,null,null,null,null,null,null,"cliquer sur chaque icône le vendredi en fin de slide",null,null,null,null,null,null,null,"oui"]
[null,null,null,null,null,null,null,null,null,null,null,null,null,null,null,null,null,null,null,null,null,null,null,null,null,null,null,null,null,"Le total semaine se colore en vert quand vous cliquez",null,null,null,null,null,null,null,"non"]
[null,null,null,null,null,null,null,null,null,null,null,null,null,null,null,null,null,null,null,null,null,null,null,null,null,null,null,null,null,"Point focus",null,"CIL",null,"Centerlining",null,null,null,"#NA"]
[]
[]
[]
[]
[]
[]
[null,null,null,null,"L","Ma","Me","J","V","S","D",null,null,null,null,null,null,"L","Ma","Me","J","V","S","D",null,"Total Semaine"]
[]
[null,null,null,null,null,null,null,null,null,null,null,null,null,null,null,null,null,"non","oui","non",null,null,null,null,null,{"$f":"COUNTIF(R16:X16,\"non\")","v":2}]
[]
[]
[]
[null,null,null,"P1",null,11]
[null,null,null,null,null,null,null,null,null,null,null,null,null,null,null,null,null,"L","Ma","Me","J","V","S","D",null,"Total Semaine"]
[]
[null,null,null,"P2",null,null,null,null,null,null,null,null,null,null,null,null,null,"non",null,null,null,null,null,null,null,{"$f":"COUNTIF(R23:X23,\"non\")","v":1}]
[]
[]
[]
[]
[null,null,null,null,null,null,null,null,null,null,null,null,null,null,"N° de point",null,null,"Valeur",null,null,"Standard",null,null,"Remis au std ?"]

{"sheet":"Plan d'action court terme","index":13,"n_rows":15,"n_cols":11,"rows_kept":15,"cut":false,"hidden":false,"merged":[[3,3,3,4],[3,6,3,7],[4,3,4,4],[4,6,4,9],[5,3,5,4],[5,6,5,9],[6,3,6,4],[6,6,6,9],[7,3,7,4],[7,6,7,9],[8,3,8,4],[8,6,8,9],[15,3,15,4],[15,6,15,9],[14,3,14,4],[13,3,13,4],[12,3,12,4],[14,6,14,7],[13,6,13,7],[12,6,12,7],[11,6,11,7],[10,6,10,7],[9,3,9,4],[9,6,9,9],[11,3,11,4],[10,3,10,4]]}
[]
[]
[]
[null,"Ligne","Problème","Action",null,"Qui","Délai",null,null,null,"Priorités définies ?"]
[null,"E","bi bandes magasin étuis qui ne sont plus en bonne position","recaler au point zéro",null,"BBY","S40"]
[]
[]
[null,"C","doute sur cellule fibre optique (en face pont levis, vérifier rabat) focke","regarder pour trouver autre cellule",null,"RBT","S41"]
[null,"C","sur format HA10T + K10T, double mouvement sur poussoir pile","A surveiller",null,"SBL","S40"]
[null,"B","déshumidificateur : doute sur sonde","donner délai",null,"MMD","S40"]
[null,"D","Surdosage sur le format Kg (bennes 6/8)","identifier bennes défaillantes",null,"SBL","S40"]
[]
[null,"D","fin de la maintenance","à redémarrer",null,"CTL","S40"]
[null,"B","dépose poche transfert 2","quelques dysfonctionnements",null,"IAR","S40"]
[null,"E","formateur caisse en dépannage provisoire","à remettre au standard",null,"BBY","S40"]

{"sheet":"suivi des pannes","index":14,"n_rows":23,"n_cols":23,"rows_kept":23,"cut":false,"hidden":false,"merged":[[0,0,1,21],[17,6,18,12],[2,16,3,21],[4,16,5,21],[6,16,7,21],[8,16,9,21],[10,16,11,21],[12,16,13,21],[14,16,15,21],[16,16,17,21],[18,16,22,21],[22,0,22,15]]}
["Suivi des pannes"]
[]
[null,null,null,null,null,null,null,null,null,null,null,null,null,null,null,null,"Commentaires"]
[null,"Lignes","L",null,"Ma",null,"ME",null,"J",null,"V",null,"S",null,"D"]
[null,"A"]
[null,null,null,null,null,null,null,null,null,null,null,null,null,null,null,null,null,null,null,null,null,null,"inverser WE"]
[null,"B"]
[]
[null,"C"]
[]
[null,"D"]
[]
[null,"E"]
[]
[]
[]
[]
[null,null,null,null,null,null,"effacer les données complètes"]
[]
[]
[]
[]
["Objectif : Vert si zéro panne - rouge si > 1 panne - vide si #NA"]

{"sheet":"planning d'activités","index":15,"n_rows":52,"n_cols":16,"rows_kept":52,"cut":false,"hidden":false,"merged":[[0,0,2,9],[3,0,3,2],[3,3,3,4],[3,5,3,7],[3,8,3,9],[4,0,13,4],[4,5,13,9],[15,0,24,4],[14,5,14,7],[14,0,14,2],[14,3,14,4],[14,8,14,9],[15,5,24,9]]}
[null,null,null,null,null,null,null,null,null,null,null,null,null,null,null,1]
[null,null,null,null,null,null,null,null,null,null,null,null,null,null,null,2]
[null,null,null,null,null,null,null,null,null,null,null,null,null,null,null,3]
["S :",null,null,41,null,"S :",null,null,{"$f":"D4+1","v":42},null,null,null,null,null,null,4]
["à prévoir",null,null,null,null,"à prévoir :",null,null,null,null,null,null,null,null,null,5]
[null,null,null,null,null,null,null,null,null,null,null,null,null,null,null,6]
[null,null,null,null,null,null,null,null,null,null,null,null,"Ajouter lien plan de production",null,null,7]
[null,null,null,null,null,null,null,null,null,null,null,null,null,null,null,8]
[null,null,null,null,null,null,null,null,null,null,null,null,null,null,null,9]
[null,null,null,null,null,null,null,null,null,null,null,null,null,null,null,10]
[null,null,null,null,null,null,null,null,null,null,null,null,null,null,null,11]
[null,null,null,null,null,null,null,null,null,null,null,null,null,null,null,12]
[null,null,null,null,null,null,null,null,null,null,null,null,null,null,null,13]
[null,null,null,null,null,null,null,null,null,null,null,null,null,null,null,14]
["S :",null,null,{"$f":"I4+1","v":43},null,"S :",null,null,{"$f":"D15+1","v":44},null,null,null,null,null,null,15]
["à prévoir",null,null,null,null,null,null,null,null,null,null,null,null,null,null,16]
[null,null,null,null,null,null,null,null,null,null,null,null,null,null,null,17]
[null,null,null,null,null,null,null,null,null,null,null,null,null,null,null,18]
[null,null,null,null,null,null,null,null,null,null,null,null,null,null,null,19]
[null,null,null,null,null,null,null,null,null,null,null,null,null,null,null,20]
[null,null,null,null,null,null,null,null,null,null,null,null,null,null,null,21]
[null,null,null,null,null,null,null,null,null,null,null,null,null,null,null,22]
[null,null,null,null,null,null,null,null,null,null,null,null,null,null,null,23]
[null,null,null,null,null,null,null,null,null,null,null,null,null,null,null,24]
[null,null,null,null,null,null,null,null,null,null,null,null,null,null,null,25]
[null,null,null,null,null,null,null,null,null,null,null,null,null,null,null,26]
[null,null,null,null,null,null,null,null,null,null,null,null,null,null,null,27]
[null,null,null,null,null,null,null,null,null,null,null,null,null,null,null,28]
[null,null,null,null,null,null,null,null,null,null,null,null,null,null,null,29]
[null,null,null,null,null,null,null,null,null,null,null,null,null,null,null,30]
[null,null,null,null,null,null,null,null,null,null,null,null,null,null,null,31]
[null,null,null,null,null,null,null,null,null,null,null,null,null,null,null,32]
[null,null,null,null,null,null,null,null,null,null,null,null,null,null,null,33]
[null,null,null,null,null,null,null,null,null,null,null,null,null,null,null,34]
[null,null,null,null,null,null,null,null,null,null,null,null,null,null,null,35]
[null,null,null,null,null,null,null,null,null,null,null,null,null,null,null,36]
[null,null,null,null,null,null,null,null,null,null,null,null,null,null,null,37]
[null,null,null,null,null,null,null,null,null,null,null,null,null,null,null,38]
[null,null,null,null,null,null,null,null,null,null,null,null,null,null,null,39]
[null,null,null,null,null,null,null,null,null,null,null,null,null,null,null,40]
[null,null,null,null,null,null,null,null,null,null,null,null,null,null,null,41]
[null,null,null,null,null,null,null,null,null,null,null,null,null,null,null,42]
[null,null,null,null,null,null,null,null,null,null,null,null,null,null,null,43]
[null,null,null,null,null,null,null,null,null,null,null,null,null,null,null,44]
[null,null,null,null,null,null,null,null,null,null,null,null,null,null,null,45]
[null,null,null,null,null,null,null,null,null,null,null,null,null,null,null,46]
[null,null,null,null,null,null,null,null,null,null,null,null,null,null,null,47]
[null,null,null,null,null,null,null,null,null,null,null,null,null,null,null,48]
[null,null,null,null,null,null,null,null,null,null,null,null,null,null,null,49]
[null,null,null,null,null,null,null,null,null,null,null,null,null,null,null,50]
[null,null,null,null,null,null,null,null,null,null,null,null,null,null,null,51]
[null,null,null,null,null,null,null,null,null,null,null,null,null,null,null,52]

{"sheet":"visites  évènements","index":16,"n_rows":16,"n_cols":3,"rows_kept":16,"cut":false,"hidden":false,"merged":[[1,1,3,12],[21,2,23,11],[18,2,20,11],[15,2,17,11],[12,2,14,11],[9,2,11,11],[6,2,8,11]]}
[]
[]
[]
[]
[]
[]
[null,null,"journée de remonte équipe B\n\n\n\n\n\n"]
[]
[]
[]
[]
[]
[]
[]
[]
[null,null,"Visite Martin Bugmann en Octobre"]

{"sheet":"planning présence back-up","index":17,"n_rows":17,"n_cols":8,"rows_kept":17,"cut":false,"hidden":false,"merged":[[1,1,3,12],[6,7,7,11],[6,2,7,6],[16,7,17,11],[16,2,17,6],[14,7,15,11],[12,7,13,11],[10,7,11,11],[8,7,9,11],[14,2,15,6],[12,2,13,6],[10,2,11,6],[8,2,9,6],[24,7,25,11],[22,7,23,11],[20,7,21,11],[18,7,19,11],[24,2,25,6],[22,2,23,6],[20,2,21,6],[18,2,19,6]]}
[]
[]
[]
[]
[]
[]
[null,null,"Production",null,null,null,null,"Congés"]
[]
[null,null,"prise de poste Philippe L en RI UP1"]
[]
[]
[]
[]
[]
[]
[]
[null,null,"Technique",null,null,null,null,"Congés"]

{"sheet":"Reporting Data WOR","index":18,"n_rows":51,"n_cols":54,"rows_kept":51,"cut":false,"hidden":false,"merged":[[49,0,50,0],[0,0,0,1],[1,0,12,0],[14,0,25,0],[27,0,36,0],[38,0,47,0]]}
[" Numéro de Semaine",null,1,2,3,4,5,6,7,8,9,10,11,12,13,14,15,16,17,18,19,20,21,22,23,24,25,26,27,28,29,30,31,32,33,34,35,36,37,38,39,40,41,42,43,44,45,46,47,48,49,50,51,52]
["Sécurité","EPI"]
[null,"Cumul EPI"]
[null,"SHE MAP"]
[null,"Cumul SHE MAP"]
[null,"LOTO"]
[null,"Cumul LOTO"]
[null,"5S"]
[null,"Cumul 5S"]
[null,"Situation à risque"]
[null,"Cumul Situation à risque"]
[null,"3 mètres"]
[null,"Cumul 3 mètres"]
[]
["Qualité","EPI - tenue de travail"]
[null,"Cumul EPI - tenue de travail"]
[null,"Effets personnels"]
[null,"Cumul Effets personnels"]
[null,"5S"]
[null,"Cumul 5S"]
[null,"Consommation étiquettes"]
[null,"Cumul Consommation étiquettes"]
[null,"Situations à risque"]
[null,"Cumul Situations à risque"]
[null,"Portes et fenêtres fermées"]
[null,"Cumul Portes et fenêtres fermées"]
[]
["CIL","Ligne A"]
[null,"CUMUL CIL Ligne A"]
[null,"Ligne B"]
[null,"CUMUL CIL Ligne B"]
[null,"Ligne C"]
[null,"CUMUL CIL Ligne C"]
[null,"Ligne D"]
[null,"CUMUL CIL Ligne D"]
[null,"Ligne E"]
[null,"CUMUL CIL Ligne E"]
[]
["Centerlining","Ligne A"]
[null,"Cumul C-L Ligne A"]
[null,"Ligne B"]
[null,"Cumul C-L Ligne B"]
[null,"Ligne C"]
[null,"Cumul C-L Ligne C"]
[null,"Ligne D"]
[null,"Cumul C-L Ligne D"]
[null,"Ligne E"]
[null,"Cumul C-L Ligne E"]
[]
["Focus","QR code activés"]
[null,"Cumul QR codes activés"]